Workbook

Sheet ViruSim
D1: Al empezar el día… | E1: Empleados sanos | F1: Empleados infectados | G1: Empleados infectados - ALTA | H1: Empleados infectados - BAJA | I1: % Infectados en la oficina | K1: Durante el día… | L1: Núm. compañeros contacto físico | M1: Núm. infectados contacto físico | N1: P(infectarse en el día) | O1: Infecciones en el día
A2: P(teletrabajo) | B2: 0.05 | D2: 0 | E2: =$B$3-F2 -> 999 | F2: =$B$4 -> 1 | G2: =F2-H2 -> 1 | H2: 0 | I2: =G2/(E2+G2) -> 0.001 | L2: =$B$5*(1-B$2)*((1-H2/$B$3)*(1-$B$6)+$B$6) -> 23.75 | M2: =I2*L2 -> 0.02375 | N2: =1-(1-$B$7)^M2 -> 0.000238666991 | O2: =E2*(1-B$2)*N2 -> 0.2265069078
A3: Número de empleados centro de trabajo | B3: 1000 | D3: 1 | E3: =$B$3-F3 -> 998.7734931 | F3: =F2+O2 -> 1.226506908 | G3: =F3-H3 -> 1.226506908 | H3: 0 | I3: 0.001226506908 | L3: =$B$5*(1-B$2)*((1-H3/$B$3)*(1-$B$6)+$B$6) -> 23.75 | M3: =I3*L3 -> 0.02912953906 | N3: =1-(1-$B$7)^M3 -> 0.0002927188003 | O3: =E3*(1-B$2)*N3 -> 0.2777417897
A4: Número inicial de empleados infectados | B4: 1 | D4: 2 | E4: =$B$3-F4 -> 998.4957513 | F4: 1.504248698 | G4: 1.504248698 | H4: 0 | I4: 0.001504248698 | L4: =$B$5*(1-B$2)*((1-H4/$B$3)*(1-$B$6)+$B$6) -> 23.75 | M4: 0.03572590657 | N4: =1-(1-$B$7)^M4 -> 0.0003589929063 | O4: =E4*(1-B$2)*N4 -> 0.3405302471
A5: Número de compañeros con los que se tiene trato cada día | B5: 25 | C5: NOTA: incluye planta oficina, reuniones, comedor,… | D5: 3 | E5: =$B$3-F5 -> 998.1552211 | F5: 1.844778945 | G5: 1.844778945 | H5: 0 | I5: 0.001844778945 | L5: =$B$5*(1-B$2)*((1-H5/$B$3)*(1-$B$6)+$B$6) -> 23.75 | M5: 0.04381349994 | N5: =1-(1-$B$7)^M5 -> 0.0004402434537 | O5: =E5*(1-B$2)*N5 -> 0.4174597367
A6: Nivel de backup compañeros dados de baja | B6: 0.5 | D6: 4 | E6: =$B$3-F6 -> 997.7377613 | F6: 2.262238681 | G6: 2.262238681 | H6: 0 | I6: 0.002262238681 | L6: =$B$5*(1-B$2)*((1-H6/$B$3)*(1-$B$6)+$B$6) -> 23.75 | M6: 0.05372816868 | N6: =1-(1-$B$7)^M6 -> 0.0005398403738 | O6: =E6*(1-B$2)*N6 -> 0.5116881697
A7: P(contagiarse en el día | contacto físico con 1 infectado) | B7: 0.01 | D7: 5 | E7: =$B$3-F7 -> 997.2260731 | F7: 2.773926851 | G7: 2.773926851 | H7: 0 | I7: 0.002773926851 | L7: =$B$5*(1-B$2)*((1-H7/$B$3)*(1-$B$6)+$B$6) -> 23.75 | M7: 0.06588076271 | N7: =1-(1-$B$7)^M7 -> 0.000661904636 | O7: =E7*(1-B$2)*N7 -> 0.6270651329
A8: Días incubación enfermedad (días contagiando hasta baja) | B8: 7 | D8: 6 | E8: =$B$3-F8 -> 996.599008 | F8: 3.400991984 | G8: 3.400991984 | H8: 0 | I8: 0.003400991984 | L8: =$B$5*(1-B$2)*((1-H8/$B$3)*(1-$B$6)+$B$6) -> 23.75 | M8: 0.08077355962 | N8: =1-(1-$B$7)^M8 -> 0.0008114719807 | O8: =E8*(1-B$2)*N8 -> 0.7682765624
D9: 7 | E9: =$B$3-F9 -> 995.8307315 | F9: 4.169268546 | G9: 3.169268546 | H9: =$B$4 -> 1 | I9: 0.003172440987 | L9: =$B$5*(1-B$2)*((1-H9/$B$3)*(1-$B$6)+$B$6) -> 23.738125 | M9: 0.07530780071 | N9: =1-(1-$B$7)^M9 -> 0.0007565823367 | O9: =E9*(1-B$2)*N9 -> 0.7157565447
A10: Puntos de mejora: | D10: 8 | E10: =$B$3-F10 -> 995.1149749 | F10: 4.885025091 | G10: 3.658518183 | H10: =H9+O2 -> 1.226506908 | I10: 0.003663010891 | L10: =$B$5*(1-B$2)*((1-H10/$B$3)*(1-$B$6)+$B$6) -> 23.73543523 | M10: 0.08694315776 | N10: =1-(1-$B$7)^M10 -> 0.0008734262767 | O10: =E10*(1-B$2)*N10 -> 0.825701589
A11: P(estar infectado y no saberlo) | D11: 9 | E11: =$B$3-F11 -> 994.2892733 | F11: 5.71072668 | G11: 4.206477983 | H11: =H10+O3 -> 1.504248698 | I11: 0.004212815104 | L11: =$B$5*(1-B$2)*((1-H11/$B$3)*(1-$B$6)+$B$6) -> 23.73213705 | M11: 0.0999791054 | N11: =1-(1-$B$7)^M11 -> 0.001004318921 | O11: =E11*(1-B$2)*N11 -> 0.9486543541
A12: P(muerte | infectado) | D12: 10 | E12: =$B$3-F12 -> 993.340619 | F12: 6.659381034 | G12: 4.81460209 | H12: 1.844778945 | I12: 0.004823500381 | L12: =$B$5*(1-B$2)*((1-H12/$B$3)*(1-$B$6)+$B$6) -> 23.72809325 | M12: 0.1144524668 | N12: =1-(1-$B$7)^M12 -> 0.001149624406 | O12: =E12*(1-B$2)*N12 -> 1.084870188
A13: Días de baja para reincorporarse (vuelta al trabajo) | D13: 11 | E13: =$B$3-F13 -> 992.2557488 | F13: 7.744251222 | G13: 5.482012541 | H13: 2.262238681 | I13: 0.005494442281 | L13: =$B$5*(1-B$2)*((1-H13/$B$3)*(1-$B$6)+$B$6) -> 23.72313592 | M13: 0.130345401 | N13: =1-(1-$B$7)^M13 -> 0.001309157362 | O13: =E13*(1-B$2)*N13 -> 1.234067973
A14: P(contagiarse en el día | fuera del centro de trabajo) | C14: NOTA: familia, amigos, supermercados, colegios,... | D14: 12 | E14: =$B$3-F14 -> 991.0216808 | F14: 8.978319195 | G14: 6.204392344 | H14: 2.773926851 | I14: 0.006221650748 | L14: =$B$5*(1-B$2)*((1-H14/$B$3)*(1-$B$6)+$B$6) -> 23.71705962 | M14: 0.1475592617 | N14: =1-(1-$B$7)^M14 -> 0.001481921008 | O14: =E14*(1-B$2)*N14 -> 1.395185055
D15: 13 | E15: =$B$3-F15 -> 989.6264957 | F15: 10.37350425 | G15: 6.972512266 | H15: 3.400991984 | I15: 0.006996306649 | L15: =$B$5*(1-B$2)*((1-H15/$B$3)*(1-$B$6)+$B$6) -> 23.70961322 | M15: 0.1658797246 | N15: =1-(1-$B$7)^M15 -> 0.001665758026 | O15: =E15*(1-B$2)*N15 -> 1.566054364
D16: 14 | E16: =$B$3-F16 -> 988.0604414 | F16: 11.93955861 | G16: 7.770290068 | H16: 4.169268546 | I16: 0.007802822129 | L16: =$B$5*(1-B$2)*((1-H16/$B$3)*(1-$B$6)+$B$6) -> 23.70048994 | M16: 0.1849307073 | N16: =1-(1-$B$7)^M16 -> 0.001856889562 | O16: =E16*(1-B$2)*N16 -> 1.742983164
D17: 15 | E17: =$B$3-F17 -> 986.3174582 | F17: 13.68254178 | G17: 8.797516687 | H17: 4.885025091 | I17: 0.008840703747 | L17: =$B$5*(1-B$2)*((1-H17/$B$3)*(1-$B$6)+$B$6) -> 23.69199033 | M17: 0.2094538677 | N17: =1-(1-$B$7)^M17 -> 0.002102867585 | O17: =E17*(1-B$2)*N17 -> 1.970390261
D18: 16 | E18: =$B$3-F18 -> 984.347068 | F18: 15.65293204 | G18: 9.942205359 | H18: 5.71072668 | I18: 0.009999308678 | L18: =$B$5*(1-B$2)*((1-H18/$B$3)*(1-$B$6)+$B$6) -> 23.68218512 | M18: 0.2368054792 | N18: =1-(1-$B$7)^M18 -> 0.002377144704 | O18: =E18*(1-B$2)*N18 -> 2.222938648
D19: 17 | E19: =$B$3-F19 -> 982.1241293 | F19: 17.87587069 | G19: 11.21648965 | H19: 6.659381034 | I19: 0.01129168529 | L19: =$B$5*(1-B$2)*((1-H19/$B$3)*(1-$B$6)+$B$6) -> 23.67091985 | M19: 0.2672845774 | N19: =1-(1-$B$7)^M19 -> 0.002682694897 | O19: =E19*(1-B$2)*N19 -> 2.503002421
D20: 18 | E20: =$B$3-F20 -> 979.6211269 | F20: 20.37887311 | G20: 12.63462189 | H20: 7.744251222 | I20: 0.01273323123 | L20: =$B$5*(1-B$2)*((1-H20/$B$3)*(1-$B$6)+$B$6) -> 23.65803702 | M20: 0.3012432557 | N20: =1-(1-$B$7)^M20 -> 0.003023017347 | O20: =E20*(1-B$2)*N20 -> 2.813341077
D21: 19 | E21: =$B$3-F21 -> 976.8077858 | F21: 23.19221419 | G21: 14.21389499 | H21: 8.978319195 | I21: 0.01434266804 | L21: =$B$5*(1-B$2)*((1-H21/$B$3)*(1-$B$6)+$B$6) -> 23.64338246 | M21: 0.339109186 | N21: =1-(1-$B$7)^M21 -> 0.003402360021 | O21: =E21*(1-B$2)*N21 -> 3.157279171
D22: 20 | E22: =$B$3-F22 -> 973.6505066 | F22: 26.34949336 | G22: 15.97598911 | H22: 10.37350425 | I22: 0.01614345329 | L22: =$B$5*(1-B$2)*((1-H22/$B$3)*(1-$B$6)+$B$6) -> 23.62681464 | M22: 0.3814183784 | N22: =1-(1-$B$7)^M22 -> 0.003826044772 | O22: =E22*(1-B$2)*N22 -> 3.538968909
D23: 21 | E23: =$B$3-F23 -> 970.1115377 | F23: 29.88846227 | G23: 17.94890365 | H23: 11.93955861 | I23: 0.01816579523 | L23: =$B$5*(1-B$2)*((1-H23/$B$3)*(1-$B$6)+$B$6) -> 23.60821774 | M23: 0.4288620492 | N23: =1-(1-$B$7)^M23 -> 0.004300932016 | O23: =E23*(1-B$2)*N23 -> 3.963764583
D24: 22 | E24: =$B$3-F24 -> 966.1477732 | F24: 33.85222685 | G24: 20.16968507 | H24: 13.68254178 | I24: 0.02044948602 | L24: =$B$5*(1-B$2)*((1-H24/$B$3)*(1-$B$6)+$B$6) -> 23.58751982 | M24: 0.4823526566 | N24: =1-(1-$B$7)^M24 -> 0.004836074552 | O24: =E24*(1-B$2)*N24 -> 4.438744526
D25: 23 | E25: =$B$3-F25 -> 961.7090286 | F25: 38.29097137 | G25: 22.63803933 | H25: 15.65293204 | I25: 0.02299802587 | L25: =$B$5*(1-B$2)*((1-H25/$B$3)*(1-$B$6)+$B$6) -> 23.56412143 | M25: 0.5419282743 | N25: =1-(1-$B$7)^M25 -> 0.005431755543 | O25: =E25*(1-B$2)*N25 -> 4.96257993
D26: 24 | E26: =$B$3-F26 -> 956.7464487 | F26: 43.2535513 | G26: 25.37768062 | H26: 17.87587069 | I26: 0.02583958571 | L26: =$B$5*(1-B$2)*((1-H26/$B$3)*(1-$B$6)+$B$6) -> 23.53772404 | M26: 0.6082050376 | N26: =1-(1-$B$7)^M26 -> 0.006094020568 | O26: =E26*(1-B$2)*N26 -> 5.53891091
D27: 25 | E27: =$B$3-F27 -> 951.2075378 | F27: 48.79246221 | G27: 28.41358911 | H27: 20.37887311 | I27: 0.02900467163 | L27: =$B$5*(1-B$2)*((1-H27/$B$3)*(1-$B$6)+$B$6) -> 23.50800088 | M27: 0.6818418462 | N27: =1-(1-$B$7)^M27 -> 0.006829313076 | O27: =E27*(1-B$2)*N27 -> 6.171289372
D28: 26 | E28: =$B$3-F28 -> 945.0362484 | F28: 54.96375159 | G28: 31.7715374 | H28: 23.19221419 | I28: 0.03252588468 | L28: =$B$5*(1-B$2)*((1-H28/$B$3)*(1-$B$6)+$B$6) -> 23.47459246 | M28: 0.7635318873 | N28: =1-(1-$B$7)^M28 -> 0.007644383837 | O28: =E28*(1-B$2)*N28 -> 6.863008831
D29: 27 | E29: =$B$3-F29 -> 938.1732396 | F29: 61.82676042 | G29: 35.47726706 | H29: 26.34949336 | I29: 0.03643737339 | L29: =$B$5*(1-B$2)*((1-H29/$B$3)*(1-$B$6)+$B$6) -> 23.43709977 | M29: 0.8539863553 | N29: =1-(1-$B$7)^M29 -> 0.008546122182 | O29: =E29*(1-B$2)*N29 -> 7.616855976
D30: 28 | E30: =$B$3-F30 -> 930.5563836 | F30: 69.44361639 | G30: 39.55515413 | H30: 29.88846227 | I30: 0.04077382094 | L30: =$B$5*(1-B$2)*((1-H30/$B$3)*(1-$B$6)+$B$6) -> 23.39507451 | M30: 0.9539065789 | N30: =1-(1-$B$7)^M30 -> 0.009541271935 | O30: =E30*(1-B$2)*N30 -> 8.434756932
D31: 29 | E31: =$B$3-F31 -> 922.1216267 | F31: 77.87837332 | G31: 44.02614648 | H31: 33.85222685 | I31: 0.04556875014 | L31: =$B$5*(1-B$2)*((1-H31/$B$3)*(1-$B$6)+$B$6) -> 23.34800481 | M31: 1.063939397 | N31: =1-(1-$B$7)^M31 -> 0.01063598193 | O31: =E31*(1-B$2)*N31 -> 9.317285508
D32: 30 | E32: =$B$3-F32 -> 912.8043412 | F32: 87.19565883 | G32: 48.90468746 | H32: 38.29097137 | I32: 0.05085185436 | L32: =$B$5*(1-B$2)*((1-H32/$B$3)*(1-$B$6)+$B$6) -> 23.29529471 | M32: 1.184608934 | N32: =1-(1-$B$7)^M32 -> 0.01183512502 | O32: =E32*(1-B$2)*N32 -> 10.26299582
D33: 31 | E33: =$B$3-F33 -> 902.5413453 | F33: 97.45865465 | G33: 54.20510335 | H33: 43.2535513 | I33: 0.05665566193 | L33: =$B$5*(1-B$2)*((1-H33/$B$3)*(1-$B$6)+$B$6) -> 23.23636408 | M33: 1.316471588 | N33: =1-(1-$B$7)^M33 -> 0.01314383692 | O33: =E33*(1-B$2)*N33 -> 11.26971344
D34: 32 | E34: =$B$3-F34 -> 891.2716319 | F34: 108.7283681 | G34: 59.93590588 | H34: 48.79246221 | I34: =G34/(E34+G34) -> 0.06301033529 | L34: =$B$5*(1-B$2)*((1-H34/$B$3)*(1-$B$6)+$B$6) -> 23.17058951 | M34: 1.459986614 | N34: =1-(1-$B$7)^M34 -> 0.01456622675 | O34: =E34*(1-B$2)*N34 -> 12.33334145
D35: 33 | E35: =$B$3-F35 -> 878.9382905 | F35: =F34+O34 -> 121.0617095 | G35: 66.09795796 | H35: 54.96375159 | I35: 0.0699422462 | L35: =$B$5*(1-B$2)*((1-H35/$B$3)*(1-$B$6)+$B$6) -> 23.09730545 | M35: 1.615477424 | N35: =1-(1-$B$7)^M35 -> 0.01610499581 | O35: =E35*(1-B$2)*N35 -> 13.44753261
D36: 34 | E36: =$B$3-F36 -> 865.4907578 | F36: 134.5092422 | G36: 72.68248174 | H36: 61.82676042 | I36: 0.07747234591 | L36: =$B$5*(1-B$2)*((1-H36/$B$3)*(1-$B$6)+$B$6) -> 23.01580722 | M36: 1.783088578 | N36: =1-(1-$B$7)^M36 -> 0.01776101933 | O36: =E36*(1-B$2)*N36 -> 14.60339818
D37: 35 | E37: =$B$3-F37 -> 850.8873597 | F37: 149.1126403 | G37: 79.66902394 | H37: 69.44361639 | I37: 0.0856143973 | L37: =$B$5*(1-B$2)*((1-H37/$B$3)*(1-$B$6)+$B$6) -> 22.92535706 | M37: 1.962740627 | N37: =1-(1-$B$7)^M37 -> 0.019532914 | O37: =E37*(1-B$2)*N37 -> 15.78929414
D38: 36 | E38: =$B$3-F38 -> 835.0980655 | F38: 164.9019345 | G38: 87.02356115 | H38: 77.87837332 | I38: 0.09437319181 | L38: =$B$5*(1-B$2)*((1-H38/$B$3)*(1-$B$6)+$B$6) -> 22.82519432 | M38: 2.154086441 | N38: =1-(1-$B$7)^M38 -> 0.02141662829 | O38: =E38*(1-B$2)*N38 -> 16.99073562
D39: 37 | E39: =$B$3-F39 -> 818.1073299 | F39: 181.8926701 | G39: 94.69701125 | H39: 87.19565883 | I39: 0.1037429458 | L39: =$B$5*(1-B$2)*((1-H39/$B$3)*(1-$B$6)+$B$6) -> 22.71455155 | M39: 2.35647449 | N39: =1-(1-$B$7)^M39 -> 0.02340511024 | O39: =E39*(1-B$2)*N39 -> 18.19049763
D40: 38 | E40: =$B$3-F40 -> 799.9168323 | F40: 200.0831677 | G40: 102.6245131 | H40: 97.45865465 | I40: 0.1137061627 | L40: =$B$5*(1-B$2)*((1-H40/$B$3)*(1-$B$6)+$B$6) -> 22.59267848 | M40: 2.568926775 | N40: =1-(1-$B$7)^M40 -> 0.02548812743 | O40: =E40*(1-B$2)*N40 -> 19.36896305
D41: 39 | E41: =$B$3-F41 -> 780.5478692 | F41: 219.4521308 | G41: 110.7237627 | H41: 108.7283681 | I41: 0.1242312205 | L41: =$B$5*(1-B$2)*((1-H41/$B$3)*(1-$B$6)+$B$6) -> 22.45885063 | M41: 2.790090426 | N41: =1-(1-$B$7)^M41 -> 0.02765183658 | O41: =E41*(1-B$2)*N41 -> 20.50440302
D42: 40 | E42: =$B$3-F42 -> 760.0434662 | F42: 239.9565338 | G42: 118.8948242 | H42: 121.0617095 | I42: 0.1352709576 | L42: =$B$5*(1-B$2)*((1-H42/$B$3)*(1-$B$6)+$B$6) -> 22.3123922 | M42: 3.01821866 | N42: =1-(1-$B$7)^M42 -> 0.02987864902 | O42: =E42*(1-B$2)*N42 -> 21.57361837
D43: 41 | E43: =$B$3-F43 -> 738.4698478 | F43: 261.5301522 | G43: 127.02091 | H43: 134.5092422 | I43: 0.1467617174 | L43: =$B$5*(1-B$2)*((1-H43/$B$3)*(1-$B$6)+$B$6) -> 22.15270275 | M43: 3.2511687 | N43: =1-(1-$B$7)^M43 -> 0.03214726578 | O43: =E43*(1-B$2)*N43 -> 22.55279715
D44: 42 | E44: =$B$3-F44 -> 715.9170507 | F44: 284.0829493 | G44: 134.970309 | H44: 149.1126403 | I44: 0.1586230039 | L44: =$B$5*(1-B$2)*((1-H44/$B$3)*(1-$B$6)+$B$6) -> 21.9792874 | M44: 3.48642059 | N44: =1-(1-$B$7)^M44 -> 0.03443291545 | O44: =E44*(1-B$2)*N44 -> 23.41855571
D45: 43 | E45: =$B$3-F45 -> 692.498495 | F45: 307.501505 | G45: 142.5995705 | H45: 164.9019345 | I45: 0.1707578744 | L45: =$B$5*(1-B$2)*((1-H45/$B$3)*(1-$B$6)+$B$6) -> 21.79178953 | M45: 3.721119658 | N45: =1-(1-$B$7)^M45 -> 0.03670781531 | O45: =E45*(1-B$2)*N45 -> 24.14910152
D46: 44 | E46: =$B$3-F46 -> 668.3493935 | F46: 331.6506065 | G46: 149.7579364 | H46: 181.8926701 | I46: 0.1830541434 | L46: =$B$5*(1-B$2)*((1-H46/$B$3)*(1-$B$6)+$B$6) -> 21.59002454 | M46: 3.952143448 | N46: =1-(1-$B$7)^M46 -> 0.03894185676 | O46: =E46*(1-B$2)*N46 -> 24.72542803
D47: 45 | E47: =$B$3-F47 -> 643.6239654 | F47: 356.3760346 | G47: 156.2928668 | H47: 200.0831677 | I47: 0.1953863959 | L47: =$B$5*(1-B$2)*((1-H47/$B$3)*(1-$B$6)+$B$6) -> 21.37401238 | M47: 4.176191245 | N47: =1-(1-$B$7)^M47 -> 0.04110349017 | O47: =E47*(1-B$2)*N47 -> 25.13243177
D48: 46 | E48: =$B$3-F48 -> 618.4915337 | F48: 381.5084663 | G48: 162.0563356 | H48: 219.4521308 | I48: 0.2076187021 | L48: =$B$5*(1-B$2)*((1-H48/$B$3)*(1-$B$6)+$B$6) -> 21.14400595 | M48: 4.389891073 | N48: =1-(1-$B$7)^M48 -> 0.04316075495 | O48: =E48*(1-B$2)*N48 -> 25.35983345
D49: 47 | E49: =$B$3-F49 -> 593.1317002 | F49: 406.8682998 | G49: 166.911766 | H49: 239.9565338 | I49: 0.2196081848 | L49: =$B$5*(1-B$2)*((1-H49/$B$3)*(1-$B$6)+$B$6) -> 20.90051616 | M49: 4.589924416 | N49: =1-(1-$B$7)^M49 -> 0.04508245441 | O49: =E49*(1-B$2)*N49 -> 25.40284119
D50: 48 | E50: =$B$3-F50 -> 567.728859 | F50: 432.271141 | G50: 170.7409888 | H50: 261.5301522 | I50: 0.2312091541 | L50: =$B$5*(1-B$2)*((1-H50/$B$3)*(1-$B$6)+$B$6) -> 20.64432944 | M50: 4.773157947 | N50: =1-(1-$B$7)^M50 -> 0.04683937272 | O50: =E50*(1-B$2)*N50 -> 25.26246045
D51: 49 | E51: =$B$3-F51 -> 542.4663986 | F51: 457.5336014 | G51: 173.4506521 | H51: 284.0829493 | I51: 0.2422775822 | L51: =$B$5*(1-B$2)*((1-H51/$B$3)*(1-$B$6)+$B$6) -> 20.37651498 | M51: 4.936772783 | N51: =1-(1-$B$7)^M51 -> 0.04840544689 | O51: =E51*(1-B$2)*N51 -> 24.94541202
D52: 50 | E52: =$B$3-F52 -> 517.5209866 | F52: 482.4790134 | G52: 174.9775084 | H52: 307.501505 | I52: 0.2526756516 | L52: =$B$5*(1-B$2)*((1-H52/$B$3)*(1-$B$6)+$B$6) -> 20.09841963 | M52: 5.078381275 | N52: =1-(1-$B$7)^M52 -> 0.04975880525 | O52: =E52*(1-B$2)*N52 -> 24.46366469
D53: 51 | E53: =$B$3-F53 -> 493.0573219 | F53: 506.9426781 | G53: 175.2920716 | H53: 331.6506065 | I53: 0.2622760989 | L53: =$B$5*(1-B$2)*((1-H53/$B$3)*(1-$B$6)+$B$6) -> 19.81164905 | M53: 5.196122024 | N53: =1-(1-$B$7)^M53 -> 0.050882593 | O53: =E53*(1-B$2)*N53 -> 23.83363328
D54: 52 | E54: =$B$3-F54 -> 469.2236886 | F54: 530.7763114 | G54: 174.4002768 | H54: 356.3760346 | I54: 0.2709661017 | L54: =$B$5*(1-B$2)*((1-H54/$B$3)*(1-$B$6)+$B$6) -> 19.51803459 | M54: 5.288725745 | N54: =1-(1-$B$7)^M54 -> 0.0517655242 | O54: =E54*(1-B$2)*N54 -> 23.0751297
D55: 53 | E55: =$B$3-F55 -> 446.1485589 | F55: 553.8514411 | G55: 172.3429748 | H55: 381.5084663 | I55: 0.2786504995 | L55: =$B$5*(1-B$2)*((1-H55/$B$3)*(1-$B$6)+$B$6) -> 19.21958696 | M55: 5.355547507 | N55: =1-(1-$B$7)^M55 -> 0.05240212681 | O55: =E55*(1-B$2)*N55 -> 22.21017669
D56: 54 | E56: =$B$3-F56 -> 423.9383822 | F56: 576.0616178 | G56: 169.193318 | H56: 406.8682998 | I56: 0.2852542158 | L56: =$B$5*(1-B$2)*((1-H56/$B$3)*(1-$B$6)+$B$6) -> 18.91843894 | M56: 5.396564464 | N56: =1-(1-$B$7)^M56 -> 0.05279267856 | O56: =E56*(1-B$2)*N56 -> 21.2618006
D57: 55 | E57: =$B$3-F57 -> 402.6765816 | F57: 597.3234184 | G57: 165.0522774 | H57: 432.271141 | I57: 0.2907237756 | L57: =$B$5*(1-B$2)*((1-H57/$B$3)*(1-$B$6)+$B$6) -> 18.6167802 | M57: 5.41234063 | N57: =1-(1-$B$7)^M57 -> 0.05294285184 | O57: =E57*(1-B$2)*N57 -> 20.25290427
D58: 56 | E58: =$B$3-F58 -> 382.4236773 | F58: 617.5763227 | G58: 160.0427213 | H58: 457.5336014 | I58: 0.2950278979 | L58: =$B$5*(1-B$2)*((1-H58/$B$3)*(1-$B$6)+$B$6) -> 18.31678848 | M58: 5.403963602 | N58: =1-(1-$B$7)^M58 -> 0.0528631139 | O58: =E58*(1-B$2)*N58 -> 19.20530109
D59: 57 | E59: =$B$3-F59 -> 363.2183762 | F59: 636.7816238 | G59: 154.3026103 | H59: 482.4790134 | I59: 0.2981572039 | L59: =$B$5*(1-B$2)*((1-H59/$B$3)*(1-$B$6)+$B$6) -> 18.02056172 | M59: 5.372960294 | N59: =1-(1-$B$7)^M59 -> 0.05256794606 | O59: =E59*(1-B$2)*N59 -> 18.13896181
D60: 58 | E60: =$B$3-F60 -> 345.0794144 | F60: 654.9205856 | G60: 147.9779074 | H60: 506.9426781 | I60: 0.3001231315 | L60: =$B$5*(1-B$2)*((1-H60/$B$3)*(1-$B$6)+$B$6) -> 17.7300557 | M60: 5.321199837 | N60: =1-(1-$B$7)^M60 -> 0.05207495424 | O60: =E60*(1-B$2)*N60 -> 17.07149498
D61: 59 | E61: =$B$3-F61 -> 328.0079194 | F61: 671.9920806 | G61: 141.2157691 | H61: 530.7763114 | I61: 0.3009561806 | L61: =$B$5*(1-B$2)*((1-H61/$B$3)*(1-$B$6)+$B$6) -> 17.4470313 | M61: 5.250791903 | N61: =1-(1-$B$7)^M61 -> 0.05140394292 | O61: =E61*(1-B$2)*N61 -> 16.01785535
D62: 60 | E62: =$B$3-F62 -> 311.9900641 | F62: 688.0099359 | G62: 134.1584948 | H62: 553.8514411 | I62: 0.3007036381 | L62: =$B$5*(1-B$2)*((1-H62/$B$3)*(1-$B$6)+$B$6) -> 17.17301414 | M62: 5.163987828 | N62: =1-(1-$B$7)^M62 -> 0.05057601705 | O62: =E62*(1-B$2)*N62 -> 14.99025406
D63: 61 | E63: =$B$3-F63 -> 296.99981 | F63: 703.00019 | G63: 126.9385722 | H63: 576.0616178 | I63: 0.2994269391 | L63: =$B$5*(1-B$2)*((1-H63/$B$3)*(1-$B$6)+$B$6) -> 16.90926829 | M63: 5.063090447 | N63: =1-(1-$B$7)^M63 -> 0.04961276291 | O63: =E63*(1-B$2)*N63 -> 13.9982321
D64: 62 | E64: =$B$3-F64 -> 283.0015779 | F64: 716.9984221 | G64: 119.6750037 | H64: 597.3234184 | I64: 0.2971988169 | L64: =$B$5*(1-B$2)*((1-H64/$B$3)*(1-$B$6)+$B$6) -> 16.65678441 | M64: 4.95037662 | N64: =1-(1-$B$7)^M64 -> 0.04853554298 | O64: =E64*(1-B$2)*N64 -> 13.04885349
D65: 63 | E65: =$B$3-F65 -> 269.9527244 | F65: 730.0472756 | G65: 112.4709529 | H65: 617.5763227 | I65: 0.2941003906 | L65: =$B$5*(1-B$2)*((1-H65/$B$3)*(1-$B$6)+$B$6) -> 16.41628117 | M65: 4.828034704 | N65: =1-(1-$B$7)^M65 -> 0.04736492431 | O65: =E65*(1-B$2)*N65 -> 12.14697584
D66: 64 | E66: =$B$3-F66 -> 257.8057486 | F66: 742.1942514 | G66: 105.4126276 | H66: 636.7816238 | I66: =G66/(E66+G66) -> 0.2902183219 | L66: =$B$5*(1-B$2)*((1-H66/$B$3)*(1-$B$6)+$B$6) -> 16.18821822 | M66: 4.698117526 | N66: =1-(1-$B$7)^M66 -> 0.04612024553 | O66: =E66*(1-B$2)*N66 -> 11.2955612
D67: 65 | E67: =$B$3-F67 -> 246.5101874 | F67: =F66+O66 -> 753.4898126 | G67: =F67-H67 -> 98.56922703 | H67: 654.9205856 | I67: 0.2856421534 | L67: =$B$5*(1-B$2)*((1-H67/$B$3)*(1-$B$6)+$B$6) -> 15.97281805 | M67: =I67*L67 -> 4.562510142 | N67: =1-(1-$B$7)^M67 -> 0.04481931674 | O67: =E67*(1-B$2)*N67 -> 10.49599726
F68: Infectados
E69: 0 | F69: 893.8641382
E70: 0.009999999776 | F70: 874.3802541
E71: 0.01999999955 | F71: 851.2905739
E72: 0.02999999933 | F72: 823.9297551
E73: 0.03999999911 | F73: 791.5715009
E74: 0.04999999702 | F74: 753.4898249
E75: 0.05999999493 | F75: 709.0746274
E76: 0.06999999285 | F76: 658.0122154
E77: 0.07999999076 | F77: 600.5166317
E78: 0.08999998868 | F78: 537.5530764
E79: 0.09999998659 | F79: 470.9476266
E80: 0.1099999845 | F80: 403.2713805
E81: 0.1199999824 | F81: 337.4623392
E82: 0.1299999803 | F82: 276.2851886
E83: 0.1399999857 | F83: 221.8325373
E84: 0.1499999911 | F84: 175.2519886
E85: 0.1599999964 | F85: 136.7551855
E86: 0.1700000018 | F86: 105.8332569
E87: 0.1800000072 | F87: 81.5481081
E88: 0.1900000125 | F88: 62.79440905
E89: 0.2000000179 | F89: 48.48332698
E90: 0.2100000232 | F90: 37.64500856
E91: 0.2200000286 | F91: 29.46919887
E92: 0.230000034 | F92: 23.30749406
E93: 0.2400000393 | F93: 18.6561192
E94: 0.2500000298 | F94: 15.1315552
E95: 0.2600000203 | F95: 12.44582401
E96: 0.2700000107 | F96: 10.38464752
E97: 0.2800000012 | F97: 8.789451943
E98: 0.2899999917 | F98: 7.543207661
E99: 0.2999999821 | F99: 6.559596234
E100: 0.3099999726 | F100: 5.774878703
E101: 0.319999963 | F101: 5.141868451
E102: 0.3299999535 | F102: 4.625501108
E103: 0.339999944 | F103: 4.199595318
E104: 0.3499999344 | F104: 3.844491173
E105: 0.3599999249 | F105: 3.545330532
E106: 0.3699999154 | F106: 3.290804433
E107: 0.3799999058 | F107: 3.072239483
E108: 0.3899998963 | F108: 2.882929925
E109: 0.3999998868 | F109: 2.717647756
